[Event "IMSA Blitz Women 2019"]
[Site "Hengshui"]
[Date "2019.05.18"]
[Round "11.1"]
[White "Kosteniuk, Alexandra"]
[Black "Abdumalik, Zhansaya"]
[Result "1-0"]
[ECO "E94"]
[WhiteElo "2546"]
[BlackElo "2464"]
[Annotator "RC"]
[PlyCount "77"]
[EventDate "2019.05.17"]
[EventType "blitz"]
[EventCountry "CHN"]
[SourceTitle "playchess.com"]
[Source "ChessBase"]
[SourceQuality "1"]
[TimeControl "180+2"]

1. c4 {[%emt 0:00:00]} Nf6 {[%emt 0:00:01]} 2. Nc3 {[%emt 0:00:01]} d6 {[%emt 0:00:01]} 3. d4 {[%emt 0:00:03]} g6 {[%emt 0:00:02]} 4. e4 {[%emt 0:00:01]} e5 {[%emt 0:00:03]} 5. Nf3 {[%emt 0:00:01]} Nbd7 {[%emt 0:00:00]} 6. Be2 {[%emt 0:00:03]} Bg7 {[%emt 0:00:01]} 7. O-O {[%emt 0:00:02]} O-O {[%emt 0:00:01]} 8. Qc2 {[%emt 0:00:04]} c6 {[%emt 0:00:04]} 9. d5 {[%emt 0:00:04]} c5 {[%emt 0:00:04]} 10. Bg5 {[%emt 0:00:09]} h6 {[%emt 0:00:02]} 11. Bh4 {[%emt 0:00:01]} g5 {[%emt 0:00:12]} 12. Bg3 {[%emt 0:00:00]} Nh5 {[%emt 0:00:02]} 13. Nd2 {[%emt 0:00:09]} Nf4 {[%emt 0:00:02]} 14. Bg4 {[%emt 0:00:03]} Nf6 {[%emt 0:00:07]} 15. Bxc8 {[%emt 0:00:02]} Qxc8 {[%emt 0:00:01]} 16. a3 {[%emt 0:00:11]} N6h5 {[%emt 0:00:07]} 17. b4 {[%emt 0:00:05]} Ng6 {[%emt 0:00:08]} 18. Nb5 {[%emt 0:00:12]} Qd7 {[%emt 0:00:12]} 19. bxc5 {[%emt 0:00:01]} dxc5 {[%emt 0:00:01]} 20. Nb3 {[%emt 0:00:01]} b6 {[%emt 0:00:02]} 21. Nc3 {[%emt 0:00:01]} Nhf4 {[%emt 0:00:04]} 22. a4 {[%emt 0:00:06]} h5 {[%emt 0:00:05]} 23. f3 {[%emt 0:00:11]} g4 {[%emt 0:00:11]} 24. Nd1 {[%emt 0:00:24]} gxf3 {[%emt 0:00:06]} 25. Rxf3 {[%emt 0:00:01]} Qg4 {[%emt 0:00:09]} 26. Ne3 {[%emt 0:00:04]} Qg5 {[%emt 0:00:00]} 27. Nf5 {[%emt 0:00:08]} Bf6 {[%emt 0:00:23]} 28. Raf1 {[%emt 0:00:08]} Kh7 {[%emt 0:00:06]} 29. Qf2 {[%emt 0:00:15]} Rg8 {[%emt 0:00:06]} 30. Kh1 {[%emt 0:00:07]} h4 {[%emt 0:00:09]} 31. Bxf4 {[%emt 0:00:03]} Nxf4 {[%emt 0:00:02]} 32. Rg1 {[%emt 0:00:07]} Rg6 {[%emt 0:00:05]} 33. g4 {[%emt 0:00:11]} Rag8 {[%emt 0:00:38]} 34. h3 {[%emt 0:00:01]} Bd8 {[%emt 0:00:10]} 35. Nd2 {[%emt 0:00:05]} a6 {[%emt 0:00:11]} 36. Kh2 {[%emt 0:00:09]} Re8 {[%emt 0:00:13]} 37. Rb3 {[%emt 0:00:01]} Qf6 {[%emt 0:00:08]} 38. Nf3 {[%emt 0:00:04]} Rh8 {[%emt 0:00:05]} 39. g5 {[%emt 0:00:04]} 1-0

[Event "IMSA Blitz Women 2019"]
[Site "Hengshui"]
[Date "2019.05.18"]
[Round "11.1"]
[White "Tan, Zhongyi"]
[Black "Bodnaruk, Anastasia"]
[Result "1-0"]
[ECO "A21"]
[WhiteElo "2513"]
[BlackElo "2431"]
[Annotator "RC"]
[PlyCount "95"]
[EventDate "2019.05.17"]
[EventType "blitz"]
[EventCountry "CHN"]
[SourceTitle "playchess.com"]
[Source "ChessBase"]
[SourceQuality "1"]
[TimeControl "180+2"]

1. c4 {[%emt 0:00:00]} e5 {[%emt 0:00:00]} 2. Nc3 {[%emt 0:00:00]} d6 {[%emt 0:00:00]} 3. Nf3 {[%emt 0:00:01]} f5 {[%emt 0:00:03]} 4. d4 {[%emt 0:00:01]} e4 {[%emt 0:00:01]} 5. Ng5 {[%emt 0:00:01]} Be7 {[%emt 0:00:03]} 6. Nh3 {[%emt 0:00:01]} Nf6 {[%emt 0:00:01]} 7. g3 {[%emt 0:00:01]} O-O {[%emt 0:00:02]} 8. Bg2 {[%emt 0:00:01]} c5 {[%emt 0:00:02]} 9. d5 {[%emt 0:00:05]} Nbd7 {[%emt 0:00:02]} 10. O-O {[%emt 0:00:03]} Ne5 {[%emt 0:00:01]} 11. b3 {[%emt 0:00:01]} Bd7 {[%emt 0:00:12]} 12. f3 {[%emt 0:00:02]} exf3 {[%emt 0:00:07]} 13. exf3 {[%emt 0:00:01]} a6 {[%emt 0:00:13]} 14. f4 {[%emt 0:00:02]} Nf7 {[%emt 0:00:16]} 15. Qd3 {[%emt 0:00:04]} b5 {[%emt 0:00:18]} 16. Nf2 {[%emt 0:00:04]} bxc4 {[%emt 0:00:05]} 17. bxc4 {[%emt 0:00:01]} Rb8 {[%emt 0:00:02]} 18. Re1 {[%emt 0:00:02]} Re8 {[%emt 0:00:03]} 19. Bd2 {[%emt 0:00:06]} g6 {[%emt 0:00:07]} 20. Rab1 {[%emt 0:00:03]} Bf8 {[%emt 0:00:02]} 21. Rxe8 {[%emt 0:00:04]} Qxe8 {[%emt 0:00:04]} 22. Bf3 {[%emt 0:00:06]} Bg7 {[%emt 0:00:04]} 23. Qc2 {[%emt 0:00:13]} Qd8 {[%emt 0:00:07]} 24. Ne2 {[%emt 0:00:09]} Ng4 {[%emt 0:00:16]} 25. Kg2 {[%emt 0:00:34]} Nxf2 {[%emt 0:00:09]} 26. Kxf2 {[%emt 0:00:01]} h6 {[%emt 0:00:18]} 27. Ba5 {[%emt 0:00:06]} Qc8 {[%emt 0:00:05]} 28. Rb3 {[%emt 0:00:06]} Bf6 {[%emt 0:00:18]} 29. Qb1 {[%emt 0:00:02]} Rxb3 {[%emt 0:00:01]} 30. Qxb3 {[%emt 0:00:01]} Bd8 31. Bc3 {[%emt 0:00:11]} Kh7 {[%emt 0:00:19]} 32. Ba1 {[%emt 0:00:05]} Be7 {[%emt 0:00:11]} 33. Qb2 {[%emt 0:00:02]} Qh8 {[%emt 0:00:08]} 34. Qb1 {[%emt 0:00:05]} Qd8 {[%emt 0:00:06]} 35. h4 {[%emt 0:00:04]} h5 {[%emt 0:00:04]} 36. Ng1 {[%emt 0:00:03]} a5 {[%emt 0:00:05]} 37. Qb7 {[%emt 0:00:20]} a4 {[%emt 0:00:03]} 38. a3 {[%emt 0:00:06]} Qc8 {[%emt 0:00:02]} 39. Qb6 {[%emt 0:00:09]} Qd8 {[%emt 0:00:02]} 40. Qb7 {[%emt 0:00:04]} Qc8 {[%emt 0:00:01]} 41. Qb1 {[%emt 0:00:02]} Qd8 {[%emt 0:00:03]} 42. Bd1 {[%emt 0:00:10]} Bf6 {[%emt 0:00:03]} 43. Nf3 {[%emt 0:00:02]} Qh8 {[%emt 0:00:05]} 44. Qb7 {[%emt 0:00:10]} Be8 {[%emt 0:00:04]} 45. Ng5+ {[%emt 0:00:05]} Kg8 {[%emt 0:00:04]} 46. Qb8 {[%emt 0:00:08]} Kf8 {[%emt 0:00:05]} 47. Bxf6 {[%emt 0:00:09]} Qxf6 {[%emt 0:00:01]} 48. Nh7+ {[%emt 0:00:01]} 1-0

[Event "IMSA Blitz Women 2019"]
[Site "Hengshui"]
[Date "2019.05.18"]
[Round "11.1"]
[White "Dzagnidze, Nana"]
[Black "Harika, Dronavalli"]
[Result "1/2-1/2"]
[ECO "D47"]
[WhiteElo "2510"]
[BlackElo "2492"]
[Annotator "RC"]
[PlyCount "132"]
[EventDate "2019.05.17"]
[EventType "blitz"]
[EventCountry "CHN"]
[SourceTitle "playchess.com"]
[Source "ChessBase"]
[SourceQuality "1"]
[TimeControl "180+2"]

1. d4 {[%emt 0:00:00]} d5 {[%emt 0:00:00]} 2. c4 {[%emt 0:00:01]} e6 {[%emt 0:00:00]} 3. Nc3 {[%emt 0:00:02]} c6 {[%emt 0:00:00]} 4. e3 {[%emt 0:00:08]} Nf6 {[%emt 0:00:07]} 5. Nf3 {[%emt 0:00:03]} Nbd7 {[%emt 0:00:03]} 6. Bd3 {[%emt 0:00:02]} dxc4 {[%emt 0:00:01]} 7. Bxc4 {[%emt 0:00:02]} b5 {[%emt 0:00:01]} 8. Bd3 {[%emt 0:00:01]} Bd6 {[%emt 0:00:01]} 9. a4 {[%emt 0:00:17]} b4 {[%emt 0:00:13]} 10. Ne4 {[%emt 0:00:15]} Nxe4 {[%emt 0:00:01]} 11. Bxe4 {[%emt 0:00:01]} Bb7 {[%emt 0:00:00]} 12. O-O {[%emt 0:00:05]} Nf6 {[%emt 0:00:02]} 13. Bd3 {[%emt 0:00:08]} c5 {[%emt 0:00:09]} 14. Bb5+ {[%emt 0:00:03]} Ke7 {[%emt 0:00:03]} 15. b3 {[%emt 0:00:07]} a6 {[%emt 0:00:11]} 16. Bc4 {[%emt 0:00:08]} Qc7 {[%emt 0:00:07]} 17. dxc5 {[%emt 0:00:16]} Bxc5 {[%emt 0:00:02]} 18. h3 {[%emt 0:00:12]} Rhd8 {[%emt 0:00:10]} 19. Qe2 {[%emt 0:00:02]} Ne4 {[%emt 0:00:05]} 20. Bb2 {[%emt 0:00:02]} Nc3 {[%emt 0:00:10]} 21. Bxc3 {[%emt 0:00:04]} bxc3 {[%emt 0:00:01]} 22. Rac1 {[%emt 0:00:05]} Qa5 {[%emt 0:00:15]} 23. Ne5 {[%emt 0:00:13]} Bd6 {[%emt 0:00:17]} 24. Nd3 {[%emt 0:00:17]} Rac8 {[%emt 0:00:31]} 25. e4 {[%emt 0:00:14]} g6 {[%emt 0:00:25]} 26. Rc2 {[%emt 0:00:04]} Be5 {[%emt 0:00:12]} 27. f4 {[%emt 0:00:10]} Bd4+ {[%emt 0:00:01]} 28. Kh1 {[%emt 0:00:03]} Qh5 {[%emt 0:00:01]} 29. Rf3 {[%emt 0:00:13]} Kf8 {[%emt 0:00:09]} 30. Nf2 {[%emt 0:00:29]} Qc5 {[%emt 0:00:12]} 31. Bxa6 {[%emt 0:00:06]} Bxa6 {[%emt 0:00:02]} 32. Qxa6 Bxf2 {[%emt 0:00:01]} 33. Rfxf2 {[%emt 0:00:01]} Rd1+ {[%emt 0:00:27]} 34. Kh2 {[%emt 0:00:01]} Kg7 {[%emt 0:00:01]} 35. e5 {[%emt 0:00:04]} Rcd8 {[%emt 0:00:02]} 36. Qc4 {[%emt 0:00:02]} Qxc4 {[%emt 0:00:01]} 37. bxc4 R8d3 {[%emt 0:00:01]} 38. c5 {[%emt 0:00:03]} Ra1 {[%emt 0:00:01]} 39. Rf3 {[%emt 0:00:01]} Rxf3 {[%emt 0:00:04]} 40. gxf3 {[%emt 0:00:01]} Rxa4 {[%emt 0:00:01]} 41. Rxc3 {[%emt 0:00:01]} Kf8 {[%emt 0:00:03]} 42. c6 {[%emt 0:00:01]} Ra8 {[%emt 0:00:01]} 43. Kg3 {[%emt 0:00:01]} Ke7 {[%emt 0:00:01]} 44. Kg4 {[%emt 0:00:07]} h6 {[%emt 0:00:01]} 45. Rd3 {[%emt 0:00:07]} Rc8 {[%emt 0:00:02]} 46. Rd6 {[%emt 0:00:02]} Rc7 {[%emt 0:00:03]} 47. Kg3 {[%emt 0:00:02]} Ra7 {[%emt 0:00:04]} 48. Kf2 {[%emt 0:00:01]} Ra3 {[%emt 0:00:05]} 49. Rd7+ {[%emt 0:00:05]} Ke8 {[%emt 0:00:01]} 50. Ke2 {[%emt 0:00:03]} Rc3 {[%emt 0:00:01]} 51. Rd6 {[%emt 0:00:01]} Ke7 {[%emt 0:00:02]} 52. Kd2 {[%emt 0:00:01]} Rc5 {[%emt 0:00:00]} 53. Kd3 {[%emt 0:00:00]} Rc1 {[%emt 0:00:01]} 54. Kd4 {[%emt 0:00:04]} Ke8 {[%emt 0:00:01]} 55. Kd3 {[%emt 0:00:03]} Ke7 {[%emt 0:00:01]} 56. Kd2 {[%emt 0:00:02]} Rc4 {[%emt 0:00:01]} 57. Kd3 {[%emt 0:00:02]} Rc1 {[%emt 0:00:01]} 58. Ke3 {[%emt 0:00:01]} Ke8 {[%emt 0:00:01]} 59. h4 {[%emt 0:00:01]} h5 {[%emt 0:00:01]} 60. Ke2 {[%emt 0:00:02]} Rc4 {[%emt 0:00:01]} 61. Kd3 {[%emt 0:00:01]} Rc1 {[%emt 0:00:01]} 62. Kd2 {[%emt 0:00:02]} Rc4 {[%emt 0:00:01]} 63. Ke3 {[%emt 0:00:02]} Rc3+ {[%emt 0:00:01]} 64. Kd4 {[%emt 0:00:01]} Rc1 {[%emt 0:00:01]} 65. Ke3 {[%emt 0:00:05]} Rc3+ {[%emt 0:00:01]} 66. Kd2 {[%emt 0:00:03]} Rc4 {[%emt 0:00:00]} 1/2-1/2

[Event "IMSA Blitz Women 2019"]
[Site "Hengshui"]
[Date "2019.05.18"]
[Round "11.1"]
[White "Krush, Irina"]
[Black "Koneru, Humpy"]
[Result "1-0"]
[ECO "D31"]
[WhiteElo "2422"]
[BlackElo "2553"]
[Annotator "RC"]
[PlyCount "121"]
[EventDate "2019.05.17"]
[EventType "blitz"]
[EventCountry "CHN"]
[SourceTitle "playchess.com"]
[Source "ChessBase"]
[SourceQuality "1"]
[TimeControl "180+2"]

1. d4 {[%emt 0:00:00]} d5 {[%emt 0:00:00]} 2. c4 {[%emt 0:00:00]} e6 {[%emt 0:00:01]} 3. Nc3 {[%emt 0:00:01]} Be7 {[%emt 0:00:01]} 4. cxd5 {[%emt 0:00:02]} exd5 {[%emt 0:00:01]} 5. Bf4 {[%emt 0:00:01]} Nf6 {[%emt 0:00:02]} 6. e3 {[%emt 0:00:03]} c6 {[%emt 0:00:03]} 7. Bd3 {[%emt 0:00:02]} O-O {[%emt 0:00:05]} 8. Qc2 {[%emt 0:00:02]} Re8 {[%emt 0:00:07]} 9. Nf3 {[%emt 0:00:04]} Bd6 {[%emt 0:00:16]} 10. Ne5 {[%emt 0:00:24]} Qe7 {[%emt 0:00:15]} 11. Bg3 {[%emt 0:00:05]} h6 {[%emt 0:00:17]} 12. f4 {[%emt 0:00:19]} Nfd7 {[%emt 0:01:08]} 13. O-O-O {[%emt 0:00:19]} Nf8 {[%emt 0:00:06]} 14. Bf2 {[%emt 0:00:20]} Nbd7 {[%emt 0:00:27]} 15. h3 {[%emt 0:00:19]} f6 {[%emt 0:00:11]} 16. Nf3 {[%emt 0:00:15]} Nb6 {[%emt 0:00:15]} 17. Kb1 {[%emt 0:00:10]} Nc4 {[%emt 0:00:03]} 18. Rde1 {[%emt 0:00:08]} b5 {[%emt 0:00:02]} 19. e4 {[%emt 0:00:30]} Bxf4 {[%emt 0:00:06]} 20. exd5 {[%emt 0:00:03]} Qf7 {[%emt 0:00:05]} 21. dxc6 {[%emt 0:00:04]} Nd6 {[%emt 0:00:03]} 22. Nxb5 {[%emt 0:00:07]} Be6 {[%emt 0:00:04]} 23. Nc3 {[%emt 0:00:05]} Rab8 {[%emt 0:00:04]} 24. g3 {[%emt 0:00:08]} Rec8 {[%emt 0:00:02]} 25. gxf4 {[%emt 0:00:04]} Rxc6 {[%emt 0:00:00]} 26. Ka1 {[%emt 0:00:07]} Rcb6 {[%emt 0:00:02]} 27. d5 {[%emt 0:00:04]} Bxd5 {[%emt 0:00:02]} 28. Nxd5 {[%emt 0:00:02]} Rxb2 {[%emt 0:00:01]} 29. Qc5 {[%emt 0:00:05]} Nb7 {[%emt 0:00:02]} 30. Qd4 {[%emt 0:00:02]} Na5 {[%emt 0:00:01]} 31. Rb1 {[%emt 0:00:01]} R2b7 {[%emt 0:00:04]} 32. Qe4 {[%emt 0:00:04]} f5 {[%emt 0:00:02]} 33. Qxf5 {[%emt 0:00:01]} Qe8 {[%emt 0:00:01]} 34. Rhg1 {[%emt 0:00:02]} Rxb1+ {[%emt 0:00:02]} 35. Bxb1 {[%emt 0:00:01]} Qa4 {[%emt 0:00:03]} 36. Nf6+ {[%emt 0:00:01]} Kh8 {[%emt 0:00:01]} 37. Bc2 {[%emt 0:00:05]} Qb4 {[%emt 0:00:02]} 38. Bd4 {[%emt 0:00:01]} Nc6 {[%emt 0:00:01]} 39. Be5 {[%emt 0:00:03]} Nxe5 {[%emt 0:00:02]} 40. Qxe5 {[%emt 0:00:01]} Rc8 {[%emt 0:00:03]} 41. Nd5 {[%emt 0:00:02]} Qb7 {[%emt 0:00:02]} 42. Nd4 {[%emt 0:00:02]} Rd8 {[%emt 0:00:02]} 43. Nf5 {[%emt 0:00:03]} Rxd5 44. Qxg7+ {[%emt 0:00:01]} Qxg7+ {[%emt 0:00:04]} 45. Nxg7 {[%emt 0:00:01]} Rd4 {[%emt 0:00:02]} 46. f5 {[%emt 0:00:01]} Rd2 {[%emt 0:00:01]} 47. Bb3 {[%emt 0:00:01]} Nd7 {[%emt 0:00:01]} 48. Ne6 {[%emt 0:00:02]} Nf6 {[%emt 0:00:00]} 49. Rc1 {[%emt 0:00:03]} Rf2 {[%emt 0:00:02]} 50. Nd4 {[%emt 0:00:02]} Rf4 {[%emt 0:00:01]} 51. Rd1 {[%emt 0:00:02]} Kh7 {[%emt 0:00:01]} 52. Be6 {[%emt 0:00:01]} a5 {[%emt 0:00:01]} 53. Nc6 {[%emt 0:00:02]} a4 {[%emt 0:00:01]} 54. Ne5 {[%emt 0:00:03]} h5 {[%emt 0:00:01]} 55. Kb2 {[%emt 0:00:01]} Rh4 {[%emt 0:00:02]} 56. Rd3 {[%emt 0:00:02]} Re4 {[%emt 0:00:01]} 57. Ng6 {[%emt 0:00:03]} Kh6 {[%emt 0:00:02]} 58. h4 {[%emt 0:00:01]} Ng4 {[%emt 0:00:02]} 59. Ka3 {[%emt 0:00:01]} Nf2 {[%emt 0:00:01]} 60. Rd7 {[%emt 0:00:03]} Nh3 {[%emt 0:00:04]} 61. Bg8 {[%emt 0:00:02]} 1-0

[Event "IMSA Blitz Women 2019"]
[Site "Hengshui"]
[Date "2019.05.18"]
[Round "11.2"]
[White "Lei, Tingjie"]
[Black "Zhao, Xue"]
[Result "1-0"]
[ECO "B04"]
[WhiteElo "2507"]
[BlackElo "2485"]
[Annotator "RC"]
[PlyCount "72"]
[EventDate "2019.05.17"]
[EventType "blitz"]
[EventCountry "CHN"]
[SourceTitle "playchess.com"]
[Source "ChessBase"]
[SourceQuality "1"]
[TimeControl "180+2"]

1. e4 {[%emt 0:00:00]} Nf6 {[%emt 0:00:00]} 2. e5 {[%emt 0:00:00]} Nd5 {[%emt 0:00:00]} 3. d4 {[%emt 0:00:03]} d6 {[%emt 0:00:00]} 4. Nf3 {[%emt 0:00:02]} c6 {[%emt 0:00:02]} 5. c4 Nb6 {[%emt 0:00:01]} 6. exd6 {[%emt 0:00:08]} exd6 {[%emt 0:00:01]} 7. Nc3 {[%emt 0:00:05]} Bg4 {[%emt 0:00:07]} 8. b3 {[%emt 0:00:05]} Be7 {[%emt 0:00:06]} 9. Be2 {[%emt 0:00:06]} O-O {[%emt 0:00:09]} 10. O-O {[%emt 0:00:02]} Re8 {[%emt 0:00:04]} 11. Be3 {[%emt 0:00:02]} N8d7 {[%emt 0:00:18]} 12. Qd2 {[%emt 0:00:09]} Nf8 {[%emt 0:00:18]} 13. a4 {[%emt 0:00:02]} a5 {[%emt 0:00:02]} 14. Rfe1 {[%emt 0:00:08]} d5 {[%emt 0:00:04]} 15. c5 {[%emt 0:00:01]} Nbd7 {[%emt 0:00:01]} 16. h3 {[%emt 0:00:53]} Bxf3 {[%emt 0:00:10]} 17. Bxf3 {[%emt 0:00:01]} Bf6 {[%emt 0:00:02]} 18. Ne2 {[%emt 0:00:09]} Ne6 {[%emt 0:00:03]} 19. Bg4 {[%emt 0:00:21]} Ndf8 {[%emt 0:00:07]} 20. b4 {[%emt 0:00:06]} axb4 {[%emt 0:00:12]} 21. Qxb4 {[%emt 0:00:02]} Ra7 {[%emt 0:00:05]} 22. a5 {[%emt 0:00:06]} Qc7 {[%emt 0:00:12]} 23. Reb1 {[%emt 0:00:12]} Rea8 {[%emt 0:00:05]} 24. Bf5 {[%emt 0:00:06]} g6 {[%emt 0:00:07]} 25. Bg4 {[%emt 0:00:09]} h5 {[%emt 0:00:26]} 26. Bf3 {[%emt 0:00:02]} Ng5 {[%emt 0:00:07]} 27. Bxg5 {[%emt 0:00:04]} Bxg5 {[%emt 0:00:01]} 28. g3 {[%emt 0:00:32]} h4 {[%emt 0:00:02]} 29. gxh4 {[%emt 0:00:06]} Bxh4 {[%emt 0:00:01]} 30. Bg4 {[%emt 0:00:02]} Qe7 {[%emt 0:00:16]} 31. Rb3 {[%emt 0:00:10]} Qf6 {[%emt 0:00:15]} 32. Bf3 {[%emt 0:00:05]} Ne6 {[%emt 0:00:04]} 33. Rf1 {[%emt 0:00:04]} Ng5 {[%emt 0:00:15]} 34. Bg2 {[%emt 0:00:01]} Rxa5 {[%emt 0:00:04]} 35. f4 {[%emt 0:00:00]} Ne4 {[%emt 0:00:02]} 36. Bxe4 {[%emt 0:00:01]} dxe4 {[%emt 0:00:01]} 1-0

[Event "IMSA Blitz Women 2019"]
[Site "Hengshui"]
[Date "2019.05.18"]
[Round "11.2"]
[White "Harika, Dronavalli"]
[Black "Dzagnidze, Nana"]
[Result "1/2-1/2"]
[ECO "A48"]
[WhiteElo "2492"]
[BlackElo "2510"]
[Annotator "RC"]
[PlyCount "135"]
[EventDate "2019.05.17"]
[EventType "blitz"]
[EventCountry "CHN"]
[SourceTitle "playchess.com"]
[Source "ChessBase"]
[SourceQuality "1"]
[TimeControl "180+2"]

1. d4 {[%emt 0:00:00]} Nf6 {[%emt 0:00:00]} 2. Bg5 {[%emt 0:00:00]} g6 {[%emt 0:00:03]} 3. Nf3 {[%emt 0:00:02]} Bg7 {[%emt 0:00:01]} 4. Nbd2 {[%emt 0:00:02]} O-O {[%emt 0:00:06]} 5. c3 {[%emt 0:00:14]} d6 {[%emt 0:00:05]} 6. e4 {[%emt 0:00:01]} Nbd7 {[%emt 0:00:08]} 7. Be2 {[%emt 0:00:14]} h6 {[%emt 0:00:17]} 8. Bh4 {[%emt 0:00:01]} e5 {[%emt 0:00:16]} 9. dxe5 {[%emt 0:00:16]} dxe5 {[%emt 0:00:05]} 10. O-O {[%emt 0:00:05]} Qe7 {[%emt 0:00:08]} 11. Qc2 {[%emt 0:00:08]} b6 {[%emt 0:00:13]} 12. b4 {[%emt 0:00:21]} Bb7 {[%emt 0:00:03]} 13. Rfe1 {[%emt 0:00:02]} Rfe8 {[%emt 0:00:29]} 14. Bc4 {[%emt 0:00:02]} Nf8 {[%emt 0:00:03]} 15. Bg3 {[%emt 0:00:18]} Nh5 {[%emt 0:00:12]} 16. Nf1 {[%emt 0:00:02]} Nxg3 {[%emt 0:00:10]} 17. hxg3 {[%emt 0:00:01]} Ne6 {[%emt 0:00:02]} 18. Ne3 {[%emt 0:00:02]} c6 {[%emt 0:00:01]} 19. a4 {[%emt 0:00:04]} Rac8 {[%emt 0:00:04]} 20. a5 {[%emt 0:00:11]} b5 {[%emt 0:00:03]} 21. a6 {[%emt 0:00:06]} Ba8 {[%emt 0:00:04]} 22. Bb3 {[%emt 0:00:01]} c5 {[%emt 0:00:10]} 23. bxc5 {[%emt 0:00:06]} Rxc5 {[%emt 0:00:07]} 24. Bd5 {[%emt 0:00:09]} Qc7 {[%emt 0:00:08]} 25. Qb2 {[%emt 0:00:06]} Bc6 {[%emt 0:00:27]} 26. Red1 {[%emt 0:00:14]} Rb8 {[%emt 0:00:02]} 27. Bxc6 {[%emt 0:00:04]} Qxc6 {[%emt 0:00:01]} 28. Nd5 {[%emt 0:00:01]} Kh7 {[%emt 0:00:05]} 29. Qa2 {[%emt 0:00:21]} Rc4 {[%emt 0:00:03]} 30. Nd2 {[%emt 0:00:02]} Ra4 {[%emt 0:00:01]} 31. Qb3 {[%emt 0:00:04]} Qxa6 {[%emt 0:00:02]} 32. Rxa4 {[%emt 0:00:01]} Qxa4 {[%emt 0:00:01]} 33. Qxa4 {[%emt 0:00:12]} bxa4 {[%emt 0:00:01]} 34. Ra1 {[%emt 0:00:01]} Nc5 {[%emt 0:00:01]} 35. Nc4 {[%emt 0:00:01]} Nxe4 {[%emt 0:00:08]} 36. f3 {[%emt 0:00:13]} Nc5 37. g4 e4 {[%emt 0:00:03]} 38. fxe4 {[%emt 0:00:04]} Nxe4 {[%emt 0:00:01]} 39. Rxa4 {[%emt 0:00:01]} Nxc3 {[%emt 0:00:01]} 40. Nxc3 {[%emt 0:00:05]} Bxc3 {[%emt 0:00:01]} 41. Kf2 {[%emt 0:00:00]} Kg7 {[%emt 0:00:03]} 42. Kf3 {[%emt 0:00:01]} Bd4 {[%emt 0:00:03]} 43. Ke4 {[%emt 0:00:02]} Bg1 {[%emt 0:00:03]} 44. Ra1 {[%emt 0:00:01]} Re8+ {[%emt 0:00:02]} 45. Kd5 {[%emt 0:00:01]} Bb6 {[%emt 0:00:02]} 46. Ra2 {[%emt 0:00:10]} Re1 {[%emt 0:00:04]} 47. Nd6 {[%emt 0:00:03]} Rd1+ {[%emt 0:00:08]} 48. Kc6 {[%emt 0:00:01]} Bd4 {[%emt 0:00:04]} 49. Re2 {[%emt 0:00:03]} Bb6 {[%emt 0:00:05]} 50. Re7 {[%emt 0:00:01]} Rf1 {[%emt 0:00:02]} 51. Rb7 {[%emt 0:00:03]} h5 {[%emt 0:00:02]} 52. g5 {[%emt 0:00:05]} Be3 {[%emt 0:00:03]} 53. Ne8+ {[%emt 0:00:00]} Kf8 {[%emt 0:00:01]} 54. Nf6 {[%emt 0:00:04]} Kg7 {[%emt 0:00:02]} 55. Ne8+ {[%emt 0:00:02]} Kf8 {[%emt 0:00:01]} 56. Nf6 {[%emt 0:00:00]} Bxg5 {[%emt 0:00:04]} 57. Nh7+ {[%emt 0:00:01]} Kg7 {[%emt 0:00:02]} 58. Nxg5 {[%emt 0:00:01]} Rf5 {[%emt 0:00:02]} 59. Ne6+ {[%emt 0:00:04]} Kf6 {[%emt 0:00:02]} 60. Nd8 {[%emt 0:00:00]} Kg5 {[%emt 0:00:03]} 61. Nxf7+ {[%emt 0:00:02]} Kh4 {[%emt 0:00:01]} 62. Rxa7 {[%emt 0:00:01]} Kg3 {[%emt 0:00:02]} 63. Nh8 {[%emt 0:00:05]} g5 {[%emt 0:00:01]} 64. Rg7 {[%emt 0:00:02]} Kxg2 {[%emt 0:00:03]} 65. Nf7 {[%emt 0:00:01]} g4 {[%emt 0:00:02]} 66. Nh6 {[%emt 0:00:01]} Ra5 {[%emt 0:00:02]} 67. Nxg4 {[%emt 0:00:01]} hxg4 {[%emt 0:00:02]} 68. Rxg4+ {[%emt 0:00:01]} 1/2-1/2

[Event "IMSA Blitz Women 2019"]
[Site "Hengshui"]
[Date "2019.05.18"]
[Round "11.2"]
[White "Paehtz, Elisabeth"]
[Black "Khotenashvili, Bela"]
[Result "1/2-1/2"]
[ECO "A40"]
[WhiteElo "2470"]
[BlackElo "2476"]
[Annotator "RC"]
[PlyCount "97"]
[EventDate "2019.05.17"]
[EventType "blitz"]
[EventCountry "CHN"]
[SourceTitle "playchess.com"]
[Source "ChessBase"]
[SourceQuality "1"]
[TimeControl "180+2"]

1. d4 {[%emt 0:00:00]} g6 {[%emt 0:00:00]} 2. Nf3 {[%emt 0:00:01]} Bg7 {[%emt 0:00:00]} 3. Bg5 {[%emt 0:00:03]} c5 {[%emt 0:00:04]} 4. c3 {[%emt 0:00:03]} Qb6 {[%emt 0:00:07]} 5. Qc2 {[%emt 0:00:10]} d5 {[%emt 0:00:11]} 6. e3 {[%emt 0:00:08]} Bf5 {[%emt 0:00:06]} 7. Qb3 {[%emt 0:00:01]} c4 {[%emt 0:00:05]} 8. Qa3 {[%emt 0:00:10]} Nc6 {[%emt 0:00:19]} 9. Nbd2 {[%emt 0:00:01]} Nf6 {[%emt 0:00:06]} 10. b3 {[%emt 0:00:04]} cxb3 {[%emt 0:00:05]} 11. axb3 {[%emt 0:00:01]} O-O {[%emt 0:00:16]} 12. Be2 {[%emt 0:00:02]} Rfe8 {[%emt 0:00:06]} 13. O-O {[%emt 0:00:08]} e5 {[%emt 0:00:16]} 14. dxe5 {[%emt 0:00:07]} Nxe5 {[%emt 0:00:01]} 15. Nd4 {[%emt 0:00:01]} Bd3 {[%emt 0:00:08]} 16. Bxd3 {[%emt 0:00:03]} Nxd3 {[%emt 0:00:02]} 17. Bxf6 {[%emt 0:00:09]} Bxf6 {[%emt 0:00:01]} 18. N2f3 {[%emt 0:00:06]} a6 {[%emt 0:00:04]} 19. Rfd1 {[%emt 0:00:03]} Ne5 {[%emt 0:00:26]} 20. Nxe5 {[%emt 0:00:09]} Bxe5 {[%emt 0:00:01]} 21. Rd3 {[%emt 0:00:03]} Rac8 {[%emt 0:00:05]} 22. Qb2 {[%emt 0:00:05]} Qc5 {[%emt 0:00:06]} 23. Ne2 {[%emt 0:00:10]} Qc7 {[%emt 0:00:19]} 24. g3 {[%emt 0:00:02]} Re6 {[%emt 0:00:04]} 25. Qd2 {[%emt 0:00:27]} Rc6 {[%emt 0:00:11]} 26. Rc1 {[%emt 0:00:02]} h5 {[%emt 0:00:28]} 27. h4 {[%emt 0:00:02]} Bf6 {[%emt 0:00:02]} 28. Kg2 {[%emt 0:00:24]} Kh7 {[%emt 0:00:01]} 29. Kg1 {[%emt 0:00:13]} Kg8 {[%emt 0:00:01]} 30. Kf1 {[%emt 0:00:03]} Bg7 {[%emt 0:00:02]} 31. Kg2 {[%emt 0:00:04]} Be5 {[%emt 0:00:01]} 32. Rc2 {[%emt 0:00:04]} Bg7 {[%emt 0:00:02]} 33. Rc1 {[%emt 0:00:29]} Qb6 {[%emt 0:00:00]} 34. b4 {[%emt 0:00:02]} Qc7 {[%emt 0:00:01]} 35. Rc2 {[%emt 0:00:01]} Rc4 {[%emt 0:00:03]} 36. Rc1 {[%emt 0:00:09]} Be5 {[%emt 0:00:02]} 37. Rxd5 {[%emt 0:00:06]} Bxc3 {[%emt 0:00:01]} 38. Nxc3 {[%emt 0:00:03]} Rxc3 {[%emt 0:00:01]} 39. Rxc3 {[%emt 0:00:06]} Qxc3 {[%emt 0:00:01]} 40. Qxc3 {[%emt 0:00:02]} Rxc3 {[%emt 0:00:00]} 41. Rd7 {[%emt 0:00:01]} b5 {[%emt 0:00:05]} 42. Rd6 {[%emt 0:00:02]} Rc4 {[%emt 0:00:01]} 43. Rxa6 {[%emt 0:00:01]} Rxb4 {[%emt 0:00:00]} 44. Rb6 {[%emt 0:00:01]} Kg7 {[%emt 0:00:01]} 45. Kf3 {[%emt 0:00:02]} Rb2 {[%emt 0:00:01]} 46. Kg2 {[%emt 0:00:03]} Kf8 {[%emt 0:00:10]} 47. Rb7 {[%emt 0:00:02]} Kg7 {[%emt 0:00:01]} 48. Rb6 {[%emt 0:00:01]} Kf8 {[%emt 0:00:00]} 49. Rb7 {[%emt 0:00:00]} 1/2-1/2